Workbook

Sheet Main
B2: Flash Tank Sizing Calculator | AA2: Previous Unit | AB2: 1 | AC2: 2 | AD2: Paste Values (non formulated)
B3: This excel sheet calculates the required volume of a flash tank. | R3: Unit Preferences | S3: 1 | T3: 1: English 2: Metric | W3: =IF(units_pref, "Unit Preferences - English", "Unit Preferences - Metric") -> Unit Preferences - English | AA3: 2 | AB3: English | AC3: Metric | AD3: English | AE3: Metric
G5: Sensible Heat | J5: Latent Heat | R5: Atm Pressure | S5: =14.69594878 -> 14.69594878 | T5: psia | W5: Mass | X5: =IF(Y5="lb",1,0.45359237) -> 1 | Y5: =IF(units_pref=1,"lb","kg") -> lb
C6: Process Pressure: | D6: 180 | E6: =IF(units_pref=1," psig"," barg") -> psig | G6: =hL_p(S6)*unit_preference_energy/unit_preference_mass -> 353.1295851 | H6: =IF(units_pref=1,"btu/lb","kJ/kg") -> btu/lb | J6: =(hV_p(S6)-hL_p(S6))*unit_preference_energy/unit_preference_mass -> 845.3000476 | K6: =IF(units_pref=1,"btu/lb","kJ/kg") -> btu/lb | O6: =IF(ISBLANK(D6),"¬","") ->  | R6: Pressure | S6: =IF(units_pref=1,D6,D6/unit_preference_pres_SI)+$S$5 -> 194.6959488 | T6: psia | W6: Length | X6: =IF(Y6="ft",1,0.3048) -> 1 | Y6: =IF(units_pref=1,"ft","m") -> ft | AB6: =IF(units_pref=$AB$2,$D6,$D6/unit_preference_pres_SI) -> 180 | AC6: =IF(units_pref=$AB$2,$D6*unit_preference_pres_SI,$D6) -> 12.41056313 | AD6: 180 | AE6: 12.41056313
C7: Flash Tank Pressure: | D7: 30 | E7: =IF(units_pref=1," psig"," barg") -> psig | G7: =hL_p(S7)*unit_preference_energy/unit_preference_mass -> 243.0719035 | H7: =IF(units_pref=1,"btu/lb","kJ/kg") -> btu/lb | J7: =(hV_p(S7)-hL_p(S7))*unit_preference_energy/unit_preference_mass -> 928.9515004 | K7: =IF(units_pref=1,"btu/lb","kJ/kg") -> btu/lb | O7: =IF(ISBLANK(D7),"¬","") ->  | R7: Pressure | S7: =IF(units_pref=1,D7,D7/unit_preference_pres_SI)+$S$5 -> 44.69594878 | T7: psia | W7: Pressure | X7: =IF(Y7="psia",1,0.06894757293) -> 1 | Y7: =IF(units_pref=1,"psia","bara") -> psia | AB7: =IF(units_pref=$AB$2,$D7,$D7/unit_preference_pres_SI) -> 30 | AC7: =IF(units_pref=$AB$2,$D7*unit_preference_pres_SI,$D7) -> 2.068427188 | AD7: 30 | AE7: 2.068427188
C8: Percent Flash Steam: | D8: =(G6-G7)/J7*100 -> 11.84751643 | E8: % | W8: Energy | X8: =IF(Y8="Btu",1,1.055055853) -> 1 | Y8: =IF(units_pref=1,"Btu","kJ") -> Btu
W9: Velocity | X9: =IF(Y9="ft/s",1,0.3048) -> 1 | Y9: =IF(units_pref=1,"ft/s","m/s") -> ft/s
C10: Steam Flowrate: | D10: 56819 | E10: =IF(units_pref=1," lb/h"," kg/h") -> lb/h | O10: =IF(ISBLANK(D10),"¬","") ->  | W10: Length_inch | X10: =IF(units_pref=1,12,39.37007874) -> 12 | Y10: in | AB10: =IF(units_pref=$AB$2,$D10,$D10/unit_preference_mass_SI) -> 56819 | AC10: =IF(units_pref=$AB$2,$D10*unit_preference_mass_SI,$D10) -> 25772.66487 | AD10: 56819 | AE10: 25772.66487
G11: Density | J11: Specific Volume
C12: Flash Steam Flowrate: | D12: =D10*D8/100 -> 6731.640359 | E12: =IF(units_pref=1," lb/h"," kg/h") -> lb/h | G12: =rhoV_p(S7)*unit_preference_mass/unit_preference_length^3 -> 0.1056825041 | H12: =IF(units_pref=1," lb/ft³"," kg/m³") -> lb/ft³ | J12: =1/G12 -> 9.462304178 | K12: =IF(units_pref=1," ft³/lb"," m³/kg") -> ft³/lb | W12: Unit Conversion: 1 English unit to SI unit
C13: ="at " & ROUND($D$7,1) & $E$7 -> at 30 psig | D13: =J12*D12/3600 -> 17.69356353 | E13: =IF(units_pref=1," ft³/s"," m³/s") -> ft³/s | W13: 0.45359237 | X13: kg
W14: 0.3048 | X14: m
C15: Condensate Flowrate: | D15: =D10-D12 -> 50087.35964 | E15: =IF(units_pref=1," lb/h"," kg/h") -> lb/h | G15: =rhoL_P(S7)*unit_preference_mass/unit_preference_length^3 -> 58.12156697 | H15: =IF(units_pref=1," lb/ft³"," kg/m³") -> lb/ft³ | J15: =1/G15 -> 0.01720531727 | K15: =IF(units_pref=1," ft³/lb"," m³/kg") -> ft³/lb | W15: 0.06894757293 | X15: bara
C16: ="at " & ROUND($D$7,1) & $E$7 -> at 30 psig | D16: =J15*D15/3600 -> 0.2393802539 | E16: =IF(units_pref=1," ft³/s"," m³/s") -> ft³/s
W17: 1.055055853 | X17: kJ
C18: Vessel Design Layout: | D18: For Vertical Only
C20: Liquid Retention/Surge Time: | D20: 5 | E20: min(s) | J20: =D12 -> 6731.640359 | O20: =IF(ISBLANK(D20),"¬","") -> 
C21: Typical range: 3 ~ 5 mins | J21: =E12 -> lb/h
C23: Sizing Factor: | D23: 1.5
C24: Recommended: 1.5
D26: Design | G26: =D10 -> 56819 | K26: =D29 -> 2.112013572
C27: Preferred Tank Diameter | D27: 48 | E27: in | G27: =E10 -> lb/h | K27: =E29 -> ft | R27: Area | S27: =PI()*(D27/2)^2/unit_preference_length_inch^2 -> 12.56637061 | T27: =IF(units_pref=1," ft²"," m²") -> ft²
I28: =D27/unit_preference_length_inch -> 4
C29: Height of Steam Section: | D29: =D13*D23/S27 -> 2.112013572 | E29: =IF(units_pref=1," ft"," m") -> ft | I29: =E29 -> ft
C30: Height of Condensate Section: | D30: =D16*60*D20/S27 -> 5.714782602 | E30: =IF(units_pref=1," ft"," m") -> ft | K30: =D30 -> 5.714782602
K31: =E30 -> ft
C32: Required Tank Height: | D32: =D29+D30 -> 7.826796174 | E32: =IF(units_pref=1," ft"," m") -> ft | I32: =D10 -> 56819
I33: =E10 -> lb/h
C34: Total Volume | D34: =D32*S27 -> 98.35442145 | E34: =IF(units_pref=1," ft³"," m³") -> ft³
C35: - exclude vol. of dished heads | J35: =D15 -> 50087.35964
J36: =E15 -> lb/h
C38: Flash Vent Line Sizing
C40: ="The velocity of the flash steam at the outlet should not exceed " & ROUND(3000*unit_preference_length,0) & IF(units_pref=1," feet per minute.", " meter per minute.") -> The velocity of the flash steam at the outlet should not exceed 3000 feet per minute.
C41: Norminal Diameter: | E41: in | R41: Norminal Diameter | S41: 17 | T41: =INDEX(Pipe_Size,S41,1) -> 10 | U41: : See list in Pipe Chart (row for vlookup)
C42: Pipe Schedule: | R42: Schedule | S42: 12 | T42: =MATCH(INDEX('Pipe Chart'!AX4:AX20,Main!S42,1),'Pipe Chart'!AV4:AV20,0) -> 12 | U42: : See list in Pipe Chart (column for vlookup)
C43: Outside Diameter, OD: | D43: =VLOOKUP($T$41,Pipe_Chart,2,FALSE) -> 10.75 | E43: in
C44: Wall Thickness: | D44: =VLOOKUP($T$41,Pipe_Chart,T42+2,FALSE) -> 0.594 | E44: in
C45: Internal Diameter, ID: | D45: =D43-D44*2 -> 9.562 | E45: in
C46: Inside Cross Sectional Area: | D46: =PI()*(D45/2)^2 -> 71.81040235 | E46: in²
C48: Steam Velocity: | D48: =D13*60/D46*unit_preference_length_inch^2 -> 2128.833482 | E48: =IF(units_pref=1," ft/min"," m/min") -> ft/min
D49: =IF(D48>3000*unit_preference_length,"Exceed conservative limits, please select larger ID pipe.","Sizing is ok - within conservative limits.") -> Sizing is ok - within conservative limits.
C52: Copy Rights: Not to be copied or distributed without specific permission from Inveno Engineering LLC; kelly.paffel@invenoeng.com

Sheet Blank for Calculation
A1: User Calculations Sheet
A3: This is a blank sheet provided for the user to make notes, carry out calculations etc.

Sheet Pipe Chart
AB1: 1 | AC1: 2 | AD1: 3 | AE1: 4 | AF1: 5 | AG1: 6 | AH1: 7 | AI1: 8 | AJ1: 9 | AK1: 10 | AL1: 11 | AM1: 12 | AN1: 13 | AO1: 14 | AP1: 15 | AQ1: 16 | AR1: 17
B2: Pipe Size | C2: O.D | D2: Wall Thickness (inch) | AA2: Pipe Size | AB2: Wall Thickness (inch) | AU2: Selected: | AV2: =Main!T41 -> 10
B3: (inch) | C3: (inch) | D3: 5S | E3: 10S | F3: 10 | G3: 20 | H3: 30 | I3: 40S | J3: STD | K3: 40 | L3: 60 | M3: 80S | N3: XS | O3: 80 | P3: 100 | Q3: 120 | R3: 140 | S3: 160 | T3: XXS | AA3: (inch) | AB3: 5S | AC3: 10S | AD3: 10 | AE3: 20 | AF3: 30 | AG3: 40S | AH3: STD | AI3: 40 | AJ3: 60 | AK3: 80S | AL3: XS | AM3: 80 | AN3: 100 | AO3: 120 | AP3: 140 | AQ3: 160 | AR3: XXS | AU3: Schedule Range:
B4: 0.125 | C4: 0.405 | D4: 0.035 | E4: 0.049 | F4: 0.049 | I4: 0.068 | J4: 0.068 | K4: 0.068 | M4: 0.095 | N4: 0.095 | O4: 0.095 | AA4: 0.125 | AB4: =IF(D4>0,AB$3,"") -> 5S | AC4: =IF(E4>0,AC$3,"") -> 10S | AD4: =IF(F4>0,AD$3,"") -> 10 | AE4: =IF(G4>0,AE$3,"") ->  | AF4: =IF(H4>0,AF$3,"") ->  | AG4: =IF(I4>0,AG$3,"") -> 40S | AH4: =IF(J4>0,AH$3,"") -> STD | AI4: =IF(K4>0,AI$3,"") -> 40 | AJ4: =IF(L4>0,AJ$3,"") ->  | AK4: =IF(M4>0,AK$3,"") -> 80S | AL4: =IF(N4>0,AL$3,"") -> XS | AM4: =IF(O4>0,AM$3,"") -> 80 | AN4: =IF(P4>0,AN$3,"") ->  | AO4: =IF(Q4>0,AO$3,"") ->  | AP4: =IF(R4>0,AP$3,"") ->  | AQ4: =IF(S4>0,AQ$3,"") ->  | AR4: =IF(T4>0,AR$3,"") ->  | AU4: 1 | AV4: =VLOOKUP($AV$2,$AA$4:$AR$35,AU4+1,FALSE) -> 5S | AW4: =IF(AV4="",0,1) -> 1 | AX4: =INDEX($AV$4:$AV$20,MATCH(AU4,$AW$4:$AW$20,0),1) -> 5S
B5: 0.25 | C5: 0.54 | D5: 0.049 | E5: 0.065 | F5: 0.065 | I5: 0.088 | J5: 0.088 | K5: 0.088 | M5: 0.119 | N5: 0.119 | O5: 0.119 | AA5: 0.25 | AB5: 5S | AC5: 10S | AD5: 10 | AG5: 40S | AH5: STD | AI5: 40 | AK5: 80S | AL5: XS | AM5: 80 | AU5: 2 | AV5: 10S | AW5: =IF(AV5="",AW4,AW4+1) -> 2 | AX5: 10S
B6: 0.375 | C6: 0.675 | D6: 0.049 | E6: 0.065 | F6: 0.065 | I6: 0.091 | J6: 0.091 | K6: 0.091 | M6: 0.126 | N6: 0.126 | O6: 0.126 | AA6: 0.375 | AB6: 5S | AC6: 10S | AD6: 10 | AG6: 40S | AH6: STD | AI6: 40 | AK6: 80S | AL6: XS | AM6: 80 | AU6: 3 | AV6: 10 | AW6: =IF(AV6="",AW5,AW5+1) -> 3 | AX6: 10
B7: 0.5 | C7: 0.84 | D7: 0.065 | E7: 0.083 | F7: 0.083 | I7: 0.109 | J7: 0.109 | K7: 0.109 | M7: 0.147 | N7: 0.147 | O7: 0.147 | S7: 0.188 | T7: 0.294 | AA7: 0.5 | AB7: 5S | AC7: 10S | AD7: 10 | AG7: 40S | AH7: STD | AI7: 40 | AK7: 80S | AL7: XS | AM7: 80 | AQ7: 160 | AR7: XXS | AU7: 4 | AV7: 20 | AW7: 4 | AX7: 20 | AZ7: =OFFSET('Pipe Chart'!$AX$4,,,MAX('Pipe Chart'!$AW$4:$AW$20),1) -> 20
B8: 0.75 | C8: 1.05 | D8: 0.065 | E8: 0.083 | F8: 0.083 | I8: 0.113 | J8: 0.113 | K8: 0.113 | M8: 0.154 | N8: 0.154 | O8: 0.154 | S8: 0.219 | T8: 0.308 | AA8: 0.75 | AB8: 5S | AC8: 10S | AD8: 10 | AG8: 40S | AH8: STD | AI8: 40 | AK8: 80S | AL8: XS | AM8: 80 | AQ8: 160 | AR8: XXS | AU8: 5 | AV8: 30 | AW8: 5 | AX8: 30
B9: 1 | C9: 1.315 | D9: 0.065 | E9: 0.109 | F9: 0.109 | I9: 0.133 | J9: 0.133 | K9: 0.133 | M9: 0.179 | N9: 0.179 | O9: 0.179 | S9: 0.25 | T9: 0.358 | AA9: 1 | AB9: 5S | AC9: 10S | AD9: 10 | AG9: 40S | AH9: STD | AI9: 40 | AK9: 80S | AL9: XS | AM9: 80 | AQ9: 160 | AR9: XXS | AU9: 6 | AV9: 40S | AW9: 6 | AX9: 40S
B10: 1.25 | C10: 1.66 | D10: 0.065 | E10: 0.109 | F10: 0.109 | I10: 0.14 | J10: 0.14 | K10: 0.14 | M10: 0.191 | N10: 0.191 | O10: 0.191 | S10: 0.25 | T10: 0.382 | AA10: 1.25 | AB10: 5S | AC10: 10S | AD10: 10 | AG10: 40S | AH10: STD | AI10: 40 | AK10: 80S | AL10: XS | AM10: 80 | AQ10: 160 | AR10: XXS | AU10: 7 | AV10: STD | AW10: 7 | AX10: STD
B11: 1.5 | C11: 1.9 | D11: 0.065 | E11: 0.109 | F11: 0.109 | I11: 0.145 | J11: 0.145 | K11: 0.145 | M11: 0.2 | N11: 0.2 | O11: 0.2 | S11: 0.281 | T11: 0.4 | AA11: 1.5 | AB11: 5S | AC11: 10S | AD11: 10 | AG11: 40S | AH11: STD | AI11: 40 | AK11: 80S | AL11: XS | AM11: 80 | AQ11: 160 | AR11: XXS | AU11: 8 | AV11: 40 | AW11: 8 | AX11: 40
B12: 2 | C12: 2.375 | D12: 0.065 | E12: 0.109 | F12: 0.109 | I12: 0.154 | J12: 0.154 | K12: 0.154 | M12: 0.218 | N12: 0.218 | O12: 0.218 | S12: 0.344 | T12: 0.436 | AA12: 2 | AB12: 5S | AC12: 10S | AD12: 10 | AG12: 40S | AH12: STD | AI12: 40 | AK12: 80S | AL12: XS | AM12: 80 | AQ12: 160 | AR12: XXS | AU12: 9 | AV12: 60 | AW12: 9 | AX12: 60
B13: 2.5 | C13: 2.875 | D13: 0.083 | E13: 0.12 | F13: 0.12 | I13: 0.203 | J13: 0.203 | K13: 0.203 | M13: 0.276 | N13: 0.276 | O13: 0.276 | S13: 0.375 | T13: 0.552 | AA13: 2.5 | AB13: 5S | AC13: 10S | AD13: 10 | AG13: 40S | AH13: STD | AI13: 40 | AK13: 80S | AL13: XS | AM13: 80 | AQ13: 160 | AR13: XXS | AU13: 10 | AV13: 80S | AW13: 10 | AX13: 80S
B14: 3 | C14: 3.5 | D14: 0.083 | E14: 0.12 | F14: 0.12 | I14: 0.216 | J14: 0.216 | K14: 0.216 | M14: 0.3 | N14: 0.3 | O14: 0.3 | S14: 0.438 | T14: 0.6 | AA14: 3 | AB14: 5S | AC14: 10S | AD14: 10 | AG14: 40S | AH14: STD | AI14: 40 | AK14: 80S | AL14: XS | AM14: 80 | AQ14: 160 | AR14: XXS | AU14: 11 | AV14: XS | AW14: 11 | AX14: XS
B15: 3.5 | C15: 4 | D15: 0.083 | E15: 0.12 | F15: 0.12 | I15: 0.226 | J15: 0.226 | K15: 0.226 | M15: 0.318 | N15: 0.318 | O15: 0.318 | T15: 0.636 | AA15: 3.5 | AB15: 5S | AC15: 10S | AD15: 10 | AG15: 40S | AH15: STD | AI15: 40 | AK15: 80S | AL15: XS | AM15: 80 | AR15: XXS | AU15: 12 | AV15: 80 | AW15: 12 | AX15: 80
B16: 4 | C16: 4.5 | D16: 0.083 | E16: 0.12 | F16: 0.12 | I16: 0.237 | J16: 0.237 | K16: 0.237 | L16: 0.281 | M16: 0.337 | N16: 0.337 | O16: 0.337 | Q16: 0.438 | S16: 0.531 | T16: 0.674 | AA16: 4 | AB16: 5S | AC16: 10S | AD16: 10 | AG16: 40S | AH16: STD | AI16: 40 | AJ16: 60 | AK16: 80S | AL16: XS | AM16: 80 | AO16: 120 | AQ16: 160 | AR16: XXS | AU16: 13 | AV16: 100 | AW16: 13 | AX16: 100
B17: 5 | C17: 5.563 | D17: 0.109 | E17: 0.13 | F17: 0.134 | G17: 0.203 | I17: 0.258 | J17: 0.258 | K17: 0.258 | M17: 0.375 | N17: 0.375 | O17: 0.375 | Q17: 0.5 | S17: 0.625 | T17: 0.75 | AA17: 5 | AB17: 5S | AC17: 10S | AD17: 10 | AE17: 20 | AG17: 40S | AH17: STD | AI17: 40 | AK17: 80S | AL17: XS | AM17: 80 | AO17: 120 | AQ17: 160 | AR17: XXS | AU17: 14 | AV17: 120 | AW17: 14 | AX17: 120
B18: 6 | C18: 6.625 | D18: 0.109 | E18: 0.134 | F18: 0.134 | G18: 0.203 | I18: 0.28 | J18: 0.28 | K18: 0.28 | M18: 0.432 | N18: 0.432 | O18: 0.432 | Q18: 0.562 | S18: 0.719 | T18: 0.864 | AA18: 6 | AB18: 5S | AC18: 10S | AD18: 10 | AE18: 20 | AG18: 40S | AH18: STD | AI18: 40 | AK18: 80S | AL18: XS | AM18: 80 | AO18: 120 | AQ18: 160 | AR18: XXS | AU18: 15 | AV18: 140 | AW18: 15 | AX18: 140
B19: 8 | C19: 8.625 | D19: 0.109 | E19: 0.148 | F19: 0.148 | G19: 0.25 | H19: 0.277 | I19: 0.322 | J19: 0.322 | K19: 0.322 | L19: 0.406 | M19: 0.5 | N19: 0.5 | O19: 0.5 | P19: 0.594 | Q19: 0.719 | R19: 0.812 | S19: 0.906 | T19: 0.875 | AA19: 8 | AB19: 5S | AC19: 10S | AD19: 10 | AE19: 20 | AF19: 30 | AG19: 40S | AH19: STD | AI19: 40 | AJ19: 60 | AK19: 80S | AL19: XS | AM19: 80 | AN19: 100 | AO19: 120 | AP19: 140 | AQ19: 160 | AR19: XXS | AU19: 16 | AV19: 160 | AW19: 16 | AX19: 160
B20: 10 | C20: 10.75 | D20: 0.134 | E20: 0.165 | F20: 0.165 | G20: 0.25 | H20: 0.307 | I20: 0.365 | J20: 0.365 | K20: 0.365 | L20: 0.5 | M20: 0.5 | N20: 0.5 | O20: 0.594 | P20: 0.719 | Q20: 0.844 | R20: 1 | S20: 1.125 | T20: 1 | AA20: 10 | AB20: 5S | AC20: 10S | AD20: 10 | AE20: 20 | AF20: 30 | AG20: 40S | AH20: STD | AI20: 40 | AJ20: 60 | AK20: 80S | AL20: XS | AM20: 80 | AN20: 100 | AO20: 120 | AP20: 140 | AQ20: 160 | AR20: XXS | AU20: 17 | AV20: XXS | AW20: 17 | AX20: XXS
B21: 12 | C21: 12.75 | D21: 0.165 | E21: 0.18 | F21: 0.18 | G21: 0.25 | H21: 0.33 | I21: 0.375 | J21: 0.375 | K21: 0.406 | L21: 0.562 | M21: 0.5 | N21: 0.5 | O21: 0.688 | P21: 0.844 | Q21: 1 | R21: 1.125 | S21: 1.312 | T21: 1 | AA21: 12 | AB21: 5S | AC21: 10S | AD21: 10 | AE21: 20 | AF21: 30 | AG21: 40S | AH21: STD | AI21: 40 | AJ21: 60 | AK21: 80S | AL21: XS | AM21: 80 | AN21: 100 | AO21: 120 | AP21: 140 | AQ21: 160 | AR21: XXS
B22: 14 | C22: 14 | E22: 0.188 | F22: 0.25 | G22: 0.312 | H22: 0.375 | I22: 0.375 | J22: 0.375 | K22: 0.438 | L22: 0.594 | M22: 0.5 | N22: 0.5 | O22: 0.75 | P22: 0.938 | Q22: 1.094 | R22: 1.25 | S22: 1.406 | AA22: 14 | AC22: 10S | AD22: 10 | AE22: 20 | AF22: 30 | AG22: 40S | AH22: STD | AI22: 40 | AJ22: 60 | AK22: 80S | AL22: XS | AM22: 80 | AN22: 100 | AO22: 120 | AP22: 140 | AQ22: 160
B23: 16 | C23: 16 | E23: 0.188 | F23: 0.25 | G23: 0.312 | H23: 0.375 | I23: 0.375 | J23: 0.375 | K23: 0.5 | L23: 0.656 | M23: 0.5 | N23: 0.5 | O23: 0.844 | P23: 1.031 | Q23: 1.219 | R23: 1.428 | S23: 1.594 | AA23: 16 | AC23: 10S | AD23: 10 | AE23: 20 | AF23: 30 | AG23: 40S | AH23: STD | AI23: 40 | AJ23: 60 | AK23: 80S | AL23: XS | AM23: 80 | AN23: 100 | AO23: 120 | AP23: 140 | AQ23: 160
B24: 18 | C24: 18 | E24: 0.188 | F24: 0.25 | G24: 0.312 | H24: 0.438 | I24: 0.375 | J24: 0.375 | K24: 0.562 | L24: 0.75 | M24: 0.5 | N24: 0.5 | O24: 0.938 | P24: 1.156 | Q24: 1.375 | R24: 1.562 | S24: 1.781 | AA24: 18 | AC24: 10S | AD24: 10 | AE24: 20 | AF24: 30 | AG24: 40S | AH24: STD | AI24: 40 | AJ24: 60 | AK24: 80S | AL24: XS | AM24: 80 | AN24: 100 | AO24: 120 | AP24: 140 | AQ24: 160
B25: 20 | C25: 20 | E25: 0.219 | F25: 0.25 | G25: 0.375 | H25: 0.5 | I25: 0.375 | J25: 0.375 | K25: 0.594 | L25: 0.812 | M25: 0.5 | N25: 0.5 | O25: 1.031 | P25: 1.281 | Q25: 1.5 | R25: 1.75 | S25: 1.969 | AA25: 20 | AC25: 10S | AD25: 10 | AE25: 20 | AF25: 30 | AG25: 40S | AH25: STD | AI25: 40 | AJ25: 60 | AK25: 80S | AL25: XS | AM25: 80 | AN25: 100 | AO25: 120 | AP25: 140 | AQ25: 160
B26: 22 | C26: 22 | E26: 0.219 | F26: 0.25 | G26: 0.375 | H26: 0.5 | I26: 0.375 | J26: 0.375 | L26: 0.875 | M26: 0.5 | N26: 0.5 | O26: 1.125 | P26: 1.375 | Q26: 1.625 | R26: 1.875 | S26: 2.125 | AA26: 22 | AC26: 10S | AD26: 10 | AE26: 20 | AF26: 30 | AG26: 40S | AH26: STD | AJ26: 60 | AK26: 80S | AL26: XS | AM26: 80 | AN26: 100 | AO26: 120 | AP26: 140 | AQ26: 160
B27: 24 | C27: 24 | E27: 0.25 | F27: 0.25 | G27: 0.375 | H27: 0.562 | I27: 0.375 | J27: 0.375 | K27: 0.688 | L27: 0.969 | M27: 0.5 | N27: 0.5 | O27: 1.219 | P27: 1.531 | Q27: 1.812 | R27: 2.062 | S27: 2.344 | AA27: 24 | AC27: 10S | AD27: 10 | AE27: 20 | AF27: 30 | AG27: 40S | AH27: STD | AI27: 40 | AJ27: 60 | AK27: 80S | AL27: XS | AM27: 80 | AN27: 100 | AO27: 120 | AP27: 140 | AQ27: 160
B28: 26 | C28: 26 | F28: 0.312 | G28: 0.5 | I28: 0.375 | J28: 0.375 | M28: 0.5 | N28: 0.5 | AA28: 26 | AD28: 10 | AE28: 20 | AG28: 40S | AH28: STD | AK28: 80S | AL28: XS
B29: 28 | C29: 28 | F29: 0.312 | G29: 0.5 | H29: 0.625 | I29: 0.375 | J29: 0.375 | AA29: 28 | AD29: 10 | AE29: 20 | AF29: 30 | AG29: 40S | AH29: STD
B30: 30 | C30: 30 | E30: 0.312 | F30: 0.312 | G30: 0.5 | H30: 0.625 | I30: 0.375 | J30: 0.375 | M30: 0.5 | N30: 0.5 | AA30: 30 | AC30: 10S | AD30: 10 | AE30: 20 | AF30: 30 | AG30: 40S | AH30: STD | AK30: 80S | AL30: XS
B31: 32 | C31: 32 | F31: 0.312 | G31: 0.5 | H31: 0.625 | I31: 0.375 | J31: 0.375 | K31: 0.688 | M31: 0.5 | N31: 0.5 | AA31: 32 | AD31: 10 | AE31: 20 | AF31: 30 | AG31: 40S | AH31: STD | AI31: 40 | AK31: 80S | AL31: XS
B32: 34 | C32: 34 | F32: 0.312 | G32: 0.5 | H32: 0.625 | I32: 0.375 | J32: 0.375 | K32: 0.688 | M32: 0.5 | N32: 0.5 | AA32: 34 | AD32: 10 | AE32: 20 | AF32: 30 | AG32: 40S | AH32: STD | AI32: 40 | AK32: 80S | AL32: XS
B33: 36 | C33: 36 | F33: 0.312 | G33: 0.5 | H33: 0.625 | I33: 0.375 | J33: 0.375 | K33: 0.75 | M33: 0.5 | N33: 0.5 | AA33: 36 | AD33: 10 | AE33: 20 | AF33: 30 | AG33: 40S | AH33: STD | AI33: 40 | AK33: 80S | AL33: XS
B34: 42 | C34: 42 | F34: 0.313 | G34: 0.5 | I34: 0.375 | J34: 0.375 | M34: 0.5 | N34: 0.5 | AA34: 42 | AD34: 10 | AE34: 20 | AG34: 40S | AH34: STD | AK34: 80S | AL34: XS
B35: 48 | C35: 48 | I35: 0.375 | J35: 0.375 | M35: 0.5 | N35: 0.5 | AA35: 48 | AG35: 40S | AH35: STD | AK35: 80S | AL35: XS

Sheet Properties (hidden)
B1: X Steam Tables (English Units)
B2: Excel macros, IF-97 Steam tables. | D2: The excel scripts are stored inside this workbook. A complete list of functions for use is available on the "Calling functions" worksheet
B3: By: Magnus Holmgren | D3: The steam tables are free and provided as is. We take no responsibilities for any errors in the code or damage thereby.
B4: www.x-eng.com | D4: OBS: This workbook uses macros. Set security options in Tools:Macro:Security… to enable macros.
B6: Saturation properties given temperature | F6: Saturation properties given pressure
B7: Temperature | C7: 50 | D7: degF | F7: Pressure | G7: 12.57 | H7: psi (a)
B8: Saturation pressure | C8: =psat_t(C7) -> 0.17813301 | D8: psi (a) | F8: Saturation temperature | G8: =Tsat_p(G7) -> 204.1777779 | H8: degF
B9: Liquid | F9: Liquid
B10: Enthalpy | C10: =hL_T(C7) -> 18.06581627 | D10: btu/lb | F10: Enthalpy | G10: =hL_p(G7) -> 172.3024255 | H10: btu/lb
B11: Density | C11: =rhoL_T(C7) -> 62.40634262 | D11: lb /ft3 | F11: Density | G11: =rhoL_P(G7) -> 60.02020914 | H11: lb /ft3
B12: Entropy | C12: =sL_T(C7) -> 0.0360860529 | D12: btu/(lb F) | F12: Entropy | G12: =sL_p(G7) -> 0.3003874422 | H12: btu/(lb F)
B13: Vapour | F13: Vapour
B14: Vapour enthalpy | C14: =hV_T(C7) -> 1083.073877 | D14: btu/lb | F14: Vapour enthalpy | G14: =hV_p(G7) -> 1147.318491 | H14: btu/lb
B15: Vapour density | C15: =rhoV_T(C7) -> 0.0005872328646 | D15: lb /ft3 | F15: Vapour density | G15: =rhoV_p(G7) -> 0.03223554216 | H15: lb /ft3
B16: Vapour Entropy | C16: =sV_T(C7) -> 2.125691679 | D16: btu/(lb F) | F16: vapour Entropy | G16: =sV_p(G7) -> 1.769114371 | H16: btu/(lb F)
B17: Evaporation energy | C17: =C14-C10 -> 1065.008061 | D17: btu/lb | F17: Evaporation energy | G17: =G14-G10 -> 975.0160654 | H17: btu/lb
B19: Properties given pressure and temperature | F19: Properties given pressure and enthalpy
B20: Pressure | C20: 100 | D20: psi (a) | F20: Pressure | G20: 12.57 | H20: psi (a)
B21: Temperature | C21: 50 | D21: degF | F21: Enthalpy | G21: 2788 | H21: btu/lb
B22: Enthalpy | C22: =h_pt(C20,C21) -> 18.3543276 | D22: btu/lb | F22: Temperature | G22: =T_ph(G20,G21) -> 3074.570748 | H22: degF
B23: Density | C23: =rho_pT(C20,C21) -> 62.42685928 | D23: lb /ft3 | F23: Density | G23: =rho_ph(G20,G21) -> 0.005970345217 | H23: lb /ft3
B24: Entropy | C24: =s_pT(C20,C21) -> 0.03607146366 | D24: btu/(lb F) | F24: Entropy | G24: =s_ph(G20,G21) -> 2.674276314 | H24: btu/(lb F)
B25: Vapour fraction | C25: =x_ph(C20,C22)*100 -> 0 | D25: % | F25: Vapour fraction | G25: =x_ph(G20,G21)*100 -> 100 | H25: %
B26: IF97 Region | C26: =region_pt(C20/10,C21+273.15) -> 1 | F26: IF97 Region | G26: =region_ph(G20/10,G21) -> 2
B27: Phase | C27: =IF(C26=2,"Steam",IF(C26=1,"Liquid",IF(C26=4,"Mixture",""))) -> Liquid | F27: Phase | G27: =IF(G26=2,"Steam",IF(G26=1,"Liquid",IF(G26=4,"Mixture",""))) -> Steam
B28: Isobaric heat capacity | C28: =Cp_pT(C20,C21) -> 1.001534033 | D28: btu/(lb F) | F28: Isobaric heat capacity | G28: =Cp_ph(G20,G21) -> 0.6752417934 | H28: btu/(lb F)
B29: Speed of sound | C29: =w_pT(C20,C21) -> 4752.240198 | D29: ft/s | F29: Speed of sound | G29: =w_ph(G20,G21) -> 3414.439144 | H29: ft/s

Sheet Functions (hidden)
A1: X Steam Tables | D1: v2.6 | E1: http://www.x-eng.com
A2: Steam tables by Magnus Holmgren according to IAPWS IF-97
A3: The excel scripts are stored inside this workbook. (No extra files are needed. Start from a copy of this workbook. This page can be removed)
A4: For error-reporting, feedback, other units etc. contact: | F4: magnus@x-eng.com
A5: The steam tables are free and provided as is. We take no responsibilities for any errors in the code or damage thereby.
A6: OBS: This workbook uses macros. Set security options in Tools:Macro:Security… to enable macros.
A8: Temperature
A9: Tsat_p | B9: 14.5037738 | C9: psi | F9: =Tsat_p(B9) -> 211.2906536 | G9: deg F | H9: Saturation temperature
A10: T_ph | B10: 1 | C10: psi | D10: 100 | E10: btu/lb | F10: =T_ph(B10,D10) -> 101.6943372 | G10: deg F | H10: Temperture as a function of pressure and enthalpy
A11: T_ps | B11: 1 | C11: psi | D11: 1 | E11: btu/(lb F) | F11: =T_ps(B11,D11) -> 101.6943372 | G11: deg F | H11: Temperture as a function of pressure and entropy
A12: T_hs | B12: 100 | C12: btu/lb | D12: 0.2 | E12: btu/(lb F) | F12: =T_hs(B12,D12) -> 40.71270876 | G12: deg F | H12: Temperture as a function of enthalpy and entropy
A13: Pressure
A14: psat_T | B14: 100 | C14: deg F | F14: =psat_t(B14) -> 0.9504393308 | G14: psi (a) | H14: Saturation pressure
A15: p_hs | B15: 100 | C15: btu/lb | D15: =F49 -> 0.1851252476 | E15: btu/(lb F) | F15: =p_hs(B15,D15) -> 5.988291907 | G15: psi (a) | H15: Pressure as a function of h and s.
A16: p_hrho | B16: 100 | C16: btu/lb | D16: 5 | E16: lb/ft3 | F16: =p_hrho(B16,D16) -> 2.273731918 | G16: psi (a) | H16: Pressure as a function of h and rho (density). Very unaccurate for solid water region since it's almost incompressible!
A17: Enthalpy
A18: hV_p | B18: 1 | C18: psi | F18: =hV_p(B18) -> 1105.439339 | G18: btu/lb | H18: Saturated vapour enthalpy
A19: hL_p | B19: 1 | C19: psi | F19: =hL_p(B19) -> 69.72823905 | G19: btu/lb | H19: Saturated liquid enthalpy
A20: hV_T | B20: 100 | C20: deg F | F20: =hV_T(B20) -> 1104.714855 | G20: btu/lb | H20: Saturated vapour enthalpy
A21: hL_T | B21: 100 | C21: deg F | F21: =hL_T(B21) -> 68.03698564 | G21: btu/lb | H21: Saturated liquid enthalpy
A22: h_pT | B22: 14.5037738 | C22: psi | D22: 68 | E22: deg F | F22: =h_pt(B22,D22) -> 36.11857746 | G22: btu/lb | H22: Entalpy as a function of pressure and temperature.
A23: h_ps | B23: 1 | C23: psi | D23: 1 | E23: btu/(lb F) | F23: =h_ps(B23,D23) -> 556.6369136 | G23: btu/lb | H23: Entalpy as a function of pressure and entropy.
A24: h_px | B24: 1 | C24: psi | D24: 0.5 | F24: =h_px(B24,D24) -> 587.5837889 | G24: btu/lb | H24: Entalpy as a function of pressure and vapour fraction
A25: h_Tx | B25: 100 | C25: deg F | D25: 0.5 | F25: =h_tx(B25,D25) -> 586.3759202 | G25: btu/lb | H25: Entalpy as a function of temperature and vapour fraction
A26: h_prho | B26: 1 | C26: psi | D26: 2 | E26: lb/ft3 | F26: =h_prho(B26,D26) -> 71.23095397 | G26: btu/lb | H26: Entalpy as a function of pressure and density. Observe for low temperatures (liquid) this equation has 2 solutions. (Not valid!!)
A27: Specific volume
A28: vV_p | B28: 1 | C28: psi | F28: =vV_p(B28) -> 333.5075189 | G28: ft3/lb | H28: Saturated vapour volume
A29: vL_p | B29: 1 | C29: psi | F29: =vL_p(B29) -> 0.01613681121 | G29: ft3/lb | H29: Saturated liquid volume
A30: vV_T | B30: 100 | C30: deg F | F30: =vV_T(B30) -> 349.8695999 | G30: ft3/lb | H30: Saturated vapour volume
A31: vL_T | B31: 100 | C31: deg F | F31: =vL_T(B31) -> 0.01613117433 | G31: ft3/lb | H31: Saturated liquid volume
A32: v_pT | B32: 1 | C32: psi | D32: 100 | E32: deg F | F32: =v_pT(B32,D32) -> 0.01613117189 | G32: ft3/lb | H32: Specific volume as a function of pressure and temperature.
A33: v_ph | B33: 1 | C33: psi | D33: 1000 | E33: btu/lb | F33: =v_ph(B33,D33) -> 299.5568248 | G33: ft3/lb | H33: Specific volume as a function of pressure and enthalpy
A34: v_ps | B34: 10 | C34: psi | D34: =F49 -> 0.1851252476 | E34: btu/(lb F) | F34: =v_ps(B34,D34) -> 0.01625542384 | G34: ft3/lb | H34: Specific volume as a function of pressure and entropy.
A35: Density
A36: rhoV_p | B36: 1 | C36: psi | F36: =rhoV_p(B36) -> 0.002998433148 | G36: lb/ft3 | H36: Saturated vapour density
A37: rhoL_p | B37: 1 | C37: psi | F37: =rhoL_P(B37) -> 61.97011213 | G37: lb/ft3 | H37: Saturated liquid density
A38: rhoV_T | B38: 100 | C38: deg F | F38: =rhoV_T(B38) -> 0.002858207745 | G38: lb/ft3 | H38: Saturated vapour density
A39: rhoL_T | B39: 100 | C39: deg F | F39: =rhoL_T(B39) -> 61.99176698 | G39: lb/ft3 | H39: Saturated liquid density
A40: rho_pT | B40: 1 | C40: psi | D40: 100 | E40: deg F | F40: =rho_pT(B40,D40) -> 61.99177634 | G40: lb/ft3 | H40: Density as a function of pressure and temperature.
A41: rho_ph | B41: 1 | C41: psi | D41: 1000 | E41: btu/lb | F41: =rho_ph(B41,D41) -> 0.003338264788 | G41: lb/ft3 | H41: Density as a function of pressure and enthalpy
A42: rho_ps | B42: 1 | C42: psi | D42: 1 | E42: btu/(lb F) | F42: =rho_ps(B42,D42) -> 0.006377666498 | G42: lb/ft3 | H42: Density as a function of pressure and entropy.
A43: Specific entropy
A44: sV_p | B44: 1 | C44: psi | F44: =sV_p(B44) -> 1.97762468 | G44: btu/(lb F) | H44: Saturated vapour entropy
A45: sL_p | B45: 1 | C45: psi | F45: =sL_p(B45) -> 0.1326314985 | G45: btu/(lb F) | H45: Saturated liquid entropy
A46: sV_T | B46: 50 | C46: deg F | F46: =sV_T(B46) -> 2.125691679 | G46: btu/(lb F) | H46: Saturated vapour entropy
A47: sL_T | B47: 100 | C47: deg F | F47: =sL_T(B47) -> 0.1296144513 | G47: btu/(lb F) | H47: Saturated liquid entropy
A48: s_pT | B48: 1 | C48: psi | D48: 50 | E48: deg F | F48: =s_pT(B48,D48) -> 0.0360859339 | G48: btu/(lb F) | H48: Specific entropy as a function of pressure and temperature (Returns saturated vapour entalpy if mixture.)
A49: s_ph | B49: 10 | C49: psi | D49: 100 | E49: btu/lb | F49: =s_ph(B49,D49) -> 0.1851252476 | G49: btu/(lb F) | H49: Specific entropy as a function of pressure and enthalpy
A50: Specific internal energy
A51: uV_p | B51: 1 | C51: psi | F51: =uV_p(B51) -> 1043.723867 | G51: btu/lb | H51: Saturated vapour internal energy
A52: uL_p | B52: 1 | C52: psi | F52: =uL_p(B52) -> 69.72525294 | G52: btu/lb | H52: Saturated liquid internal energy
A53: uV_T | B53: 100 | C53: deg F | F53: =uV_T(B53) -> 1043.180305 | G53: btu/lb | H53: Saturated vapour internal energy
A54: uL_T | B54: 100 | C54: deg F | F54: =uL_T(B54) -> 68.03414851 | G54: btu/lb | H54: Saturated liquid internal energy
A55: u_pT | B55: 1 | C55: psi | D55: 100 | E55: deg F | F55: =u_pT(B55,D55) -> 68.0341316 | G55: btu/lb | H55: Specific internal energy as a function of pressure and temperature.
A56: u_ph | B56: 1 | C56: psi | D56: 1000 | E56: btu/lb | F56: =u_ph(B56,D56) -> 944.567095 | G56: btu/lb | H56: Specific internal energy as a function of pressure and enthalpy
A57: u_ps | B57: 1 | C57: psi | D57: 1 | E57: btu/(lb F) | F57: =u_ps(B57,D57) -> 527.6216438 | G57: btu/lb | H57: Specific internal energy as a function of pressure and entropy.
A58: Specific isobaric heat capacity
A59: CpV_p | B59: 1 | C59: psi | F59: =CpV_p(B59) -> 0.4610466176 | G59: btu/(lb F) | H59: Saturated vapour heat capacity
A60: CpL_p | B60: 1 | C60: psi | F60: =CpL_p(B60) -> 0.9980961319 | G60: btu/(lb F) | H60: Saturated liquid heat capacity
A61: CpV_T | B61: 100 | C61: deg F | F61: =CpV_T(B61) -> 0.4607141352 | G61: btu/(lb F) | H61: Saturated vapour heat capacity
A62: CpL_T | B62: 100 | C62: deg F | F62: =CpL_T(B62) -> 0.9981101482 | G62: btu/(lb F) | H62: Saturated liquid heat capacity
A63: Cp_pT | B63: 1 | C63: psi | D63: 100 | E63: deg F | F63: =Cp_pT(B63,D63) -> 0.9981099431 | G63: btu/(lb F) | H63: Specific isobaric heat capacity as a function of pressure and temperature.
A64: Cp_ph | B64: 100 | C64: psi | D64: 200 | E64: btu/lb | F64: =Cp_ph(B64,D64) -> 1.010383515 | G64: btu/(lb F) | H64: Specific isobaric heat capacity as a function of pressure and enthalpy
A65: Cp_ps | B65: 100 | C65: psi | D65: =F49 -> 0.1851252476 | E65: btu/(lb F) | F65: =Cp_ps(B65,D65) -> 0.9983168509 | G65: btu/(lb F) | H65: Specific isobaric heat capacity as a function of pressure and entropy.
A66: Specific isochoric heat capacity
A67: CvV_p | B67: 1 | C67: psi | F67: =CvV_p(B67) -> 0.3473815118 | G67: btu/(lb F) | H67: Saturated vapour isochoric heat capacity
A68: CvL_p | B68: 1 | C68: psi | F68: =CvL_p(B68) -> 0.9741948707 | G68: btu/(lb F) | H68: Saturated liquid isochoric heat capacity
A69: CvV_T | B69: 100 | C69: deg F | F69: =CvV_T(B69) -> 0.3471349757 | G69: btu/(lb F) | H69: Saturated vapour isochoric heat capacity
A70: CvL_T | B70: 100 | C70: deg F | F70: =CvL_T(B70) -> 0.9752371398 | G70: btu/(lb F) | H70: Saturated liquid isochoric heat capacity
A71: Cv_pT | B71: 1 | C71: psi | D71: 100 | E71: deg F | F71: =Cv_pT(B71,D71) -> 0.9752369016 | G71: btu/(lb F) | H71: Specific isochoric heat capacity as a function of pressure and temperature.
A72: Cv_ph | B72: 100 | C72: psi | D72: 200 | E72: btu/lb | F72: =Cv_ph(B72,D72) -> 0.8867422172 | G72: btu/(lb F) | H72: Specific isochoric heat capacity as a function of pressure and enthalpy
A73: Cv_ps | B73: 100 | C73: psi | D73: =D65 -> 0.1851252476 | E73: btu/(lb F) | F73: =Cv_ps(B73,D73) -> 0.9541207319 | G73: btu/(lb F) | H73: Specific isochoric heat capacity as a function of pressure and entropy.
A74: Speed of sound
A75: wV_p | B75: 1 | C75: psi | F75: =wV_p(B75) -> 1430.023344 | G75: ft/s | H75: Saturated vapour speed of sound
A76: wL_p | B76: 1 | C76: psi | F76: =wL_p(B76) -> 5016.126591 | G76: ft/s | H76: Saturated liquid speed of sound
A77: wV_T | B77: 100 | C77: deg F | F77: =wV_T(B77) -> 1427.980732 | G77: ft/s | H77: Saturated vapour speed of sound
A78: wL_T | B78: 100 | C78: deg F | F78: =wL_T(B78) -> 5010.524066 | G78: ft/s | H78: Saturated liquid speed of sound
A79: w_pT | B79: 1 | C79: psi | D79: 100 | E79: deg F | F79: =w_pT(B79,D79) -> 5010.525873 | G79: ft/s | H79: Speed of sound as a function of pressure and temperature.
A80: w_ph | B80: 100 | C80: psi | D80: 100 | E80: btu/lb | F80: =w_ph(B80,D80) -> 5090.517797 | G80: ft/s | H80: Speed of sound as a function of pressure and enthalpy
A81: w_ps | B81: 100 | C81: psi | D81: =D73 -> 0.1851252476 | E81: btu/(lb F) | F81: =w_ps(B81,D81) -> 5090.919366 | G81: ft/s | H81: Speed of sound as a function of pressure and entropy.
A82: Dynamic Viscosity
A83: Viscosity is not part of IAPWS Steam IF97. Equations from ""Revised Release on the IAPWS Formulation 1985 for the Viscosity of Ordinary Water Substance"", 2003 are used.
A84: Viscosity in the mixed region (4) is interpolated according to the density. This is not true since it will be two fases.
A85: my_pT | B85: 1 | C85: psi | D85: 100 | E85: deg F | F85: =my_pT(B85,D85) -> 1.647817811 | G85: lb/ft/hr | H85: Viscosity as a function of pressure and temperature.
A86: my_ph | B86: 100 | C86: psi | D86: 100 | E86: btu/lb | F86: =my_ph(B86,D86) -> 1.211118873 | G86: lb/ft/hr | H86: Viscosity as a function of pressure and enthalpy
A87: my_ps | B87: 100 | C87: psi | D87: =D81 -> 0.1851252476 | E87: btu/(lb F) | F87: =my_ps(B87,D87) -> 1.208179571 | G87: lb/ft/hr | H87: Viscosity as a function of pressure and entropy.
A88: Prandtl
A89: Calcualted as Cp*my/tc
A90: pr_pT | B90: 1 | C90: psi | D90: 200 | E90: deg F | F90: =pr_pT(B90,D90) -> 0.9701202438 | G90: -
A91: pr_ph | B91: 1 | C91: psi | D91: 0.19 | E91: btu/lb | F91: =pr_ph(B91,D91) -> 13.40562938 | G91: -
A92: Thermal Conductivity
A93: Revised release on the IAPS Formulation 1985 for the Thermal Conductivity of ordinary water substance (IAPWS 1998)
A94: tcL_p | B94: 1 | C94: psi | F94: =tcL_p(B94) -> 0.3622261387 | G94: btu/(h*ft*F) | H94: Saturated vapour thermal conductivity
A95: tcV_p | B95: 1 | C95: psi | F95: =tcV_p(B95) -> 0.01119774893 | G95: btu/(h*ft*F) | H95: Saturated liquid thermal conductivity
A96: tcL_T | B96: 50 | C96: deg F | F96: =tcL_T(B96) -> 0.3362266821 | G96: btu/(h*ft*F) | H96: Saturated vapour thermal conductivity
A97: tcV_T | B97: 50 | C97: deg F | F97: =tcV_T(B97) -> 0.009946376555 | G97: btu/(h*ft*F) | H97: Saturated liquid thermal conductivity
A98: tc_pT | B98: 1 | C98: psi | D98: 50 | E98: deg F | F98: =tc_pt(B98,D98) -> 0.3362285212 | G98: btu/(h*ft*F) | H98: Thermal conductivity as a function of pressure and temperature.
A99: tc_ph | B99: 1 | C99: psi | D99: 100 | E99: btu/(lb F) | F99: =tc_ph(B99,D99) -> 0.020136752 | G99: btu/(h*ft*F) | H99: Thermal conductivity as a function of pressure and enthalpy
A100: tc_hs | B100: 100 | C100: btu/lb | D100: =D73 -> 0.1851252476 | E100: btu/(lb F) | F100: =tc_hs(B100,D100) -> 0.373481961 | G100: btu/(h*ft*F) | H100: Thermal conductivity as a function of enthalpy and entropy
A101: Surface Tension
A102: IAPWS Release on Surface Tension of Ordinary Water Substance, September 1994
A103: st_T | B103: 100 | C103: deg F | F103: =st_T(B104) -> 0.005342277531 | G103: lb/ft | H103: Surface tension for two phase water/steam as a function of T
A104: st_p | B104: 1 | C104: psi | F104: =st_p(B104) -> 0.00478309732 | G104: lb/ft | H104: Surface tension for two phase water/steam as a function of T
A105: Vapour fraction
A106: x_ph | B106: 1 | C106: psi | D106: 1000 | E106: btu/lb | F106: =x_ph(B106,D106) -> 0.8981961874 | H106: Vapour fraction as a function of pressure and enthalpy
A107: x_ps | B107: 1 | C107: psi | D107: 4 | E107: btu/(lb F) | F107: =x_ps(B107,D107) -> 1 | H107: Vapour fraction as a function of pressure and entropy.
A108: Vapour Volume Fraction
A109: Observe that vapour volume fraction is very sensitive. Vapour volume is about 1000 times greater than liquid volume and therfore vapour volume fraction
A110: gets close to the accurancy of steam IF-97
A111: vx_ph | B111: 1 | C111: psi | D111: 418 | E111: btu/lb | F111: =vx_ph(B111,D111) -> 0.9999045037 | H111: Vapour volume fraction as a function of pressure and enthalpy
A112: vx_ps | B112: 1 | C112: psi | D112: 4 | E112: btu/(lb F) | F112: =vx_ps(B112,D112) -> 1 | H112: Vapour volume fraction as a function of pressure and entropy.
A114: Version history
A115: News in V2.6
A116: * Error in valid region for function tc_ptrho
A117: * Error in function h3_pt for temperatures near the saturation point.
A118: News in V2.5
A119: * DLL distrubution for use in other applications
A120: * Freebasic translation
A121: * Fixed small error in Cv Region 5 p>1000bar
A122: News in V2.4a
A123: Fixed unit conversion in T_ps region4 (No effekt for SI units.)
A124: News in V2.4
A125: * TODO!!! Check Cv in region 5
A126: * ToDO!!! Tc och my not def. In region 4
A127: * OpenOffice version introduced. (Fixed calculation differences in open office and excel)
A128: * Matlab error giving varaible undefined in some backwards solutions fixed.
A129: News in V2.3
A130: * Option Explicit, gives more efficient calculations.
A131: * Extensive testing
A132: * my_ph not defined in region 4.
A133: * Problems at region border for h4V_p to adress solver problems at the exact border.
A134: * Problem at fast border check in region_ph fixed.
A135: News in V2.2
A136: * Extensive testing
A137: * Fixed error in Cp_ph
A138: * Function p_hrho added. (Very good for calcualting pressure when heating a volume with water/steam mixture.)
A139: * Fixed error in T_hs return no value for vet region bellow the water saturation line.
A140: * Prandtl number added
A141: News in V2.1
A142: * Calling function h_prho
A143: * Fixed problem with Cv reporting NaN in region 5.
A144: * Equivivalent to the Matlab version. (Downloadable from www.x-eng.com)
A145: News in V2
A146: * Calling functions of h and s added.
A147: * Thermal conductivity, Surface tension added
A148: * Calling functions h_px and h_tx added.
A149: * Cp, Cv and w undefined in the mixed region. (Before interpolation with the vapor fraction was used.)
A150: * A work sheet ""Properties"" for simple lookups added.
A151: * Cp, Cv and w undefined in the mixed region. (Before interpolation with the vapor fraction was used.)
A152: * A work sheet "Properties" for simple lookups added.
